bitfinex-derivatives/quotes_SOLF0:USTF0_20241218
["timestamp","ask_amount","ask_price","bid_price","bid_amount"]
[1734481734601,11.82348336,224.06,223.94,2.38]
[1734481735006,11.82348336,224.06,223.96,2.2321]
[1734481736405,1.5362,224.06,223.94,4.6123]
[1734481737108,1.5362,224.06,223.94,2.38]
[1734481737407,1.5362,224.06,223.95,2.2322]
[1734481737806,1.5362,224.06,223.96,2.38]
[1734481737807,11.8106837,224.06,223.96,2.38]
[1734481738508,10.53669182,224.04,223.96,2.38]
[1734481739710,10.53669182,224.04,223.94,4.6124]
[1734481740010,10.53669182,224.04,223.92,2.2326]
[1734481740208,10.53669182,224.01,223.93,2.38]
[1734481740405,10.53669182,223.98,223.9,2.38]
[1734481740709,15.75,224.05,223.86,1.4992]
[1734481740710,10.53669182,223.95,223.86,2.2331]
[1734481741412,2.2328,223.9,223.86,2.2331]
[1734481741799,2.2328,223.9,223.86,4.6131]
[1734481742408,2.2329,223.89,223.86,2.38]
[1734481743011,2.2329,223.89,223.86,4.6131]
[1734481743207,2.2329,223.89,223.86,2.2331]
[1734481743510,2.2328,223.9,223.86,4.6131]
[1734481743906,2.2324,223.94,223.86,2.38]
[1734481744311,2.2324,223.94,223.87,10.53669182]
[1734481744716,23.83994302,224.0,223.9,10.53669182]
[1734481744909,10.2731952,223.99,223.93,10.53669182]
[1734481745305,2.2317,224.01,223.93,10.53669182]
[1734481745810,2.2317,224.01,223.97,2.2321]
[1734481746007,2.2317,224.01,223.97,4.6121]
[1734481746811,14.45289182,224.06,223.93,10.53669182]
[1734481747013,2.2316,224.03,223.98,2.2319]
[1734481747216,12.91669182,224.06,223.97,2.38]
[1734481747411,10.53669182,224.06,223.97,2.38]
[1734481747615,2.2318,224.0,223.97,2.38]
[1734481748917,2.2318,224.0,223.95,2.2322]
[1734481749115,2.2318,224.0,223.96,2.38]
[1734481749715,2.2319,223.99,223.96,2.38]
[1734481750317,2.2317,224.01,223.96,4.6121]
[1734481751719,2.2317,224.01,223.96,2.38]
[1734481751917,2.2317,224.01,223.97,2.2321]
[1734481753315,2.2318,224.0,223.96,4.6122]
[1734481754823,2.2318,224.0,223.97,2.2321]
[1734481755021,2.2318,224.0,223.96,2.38]
[1734481756421,2.2318,224.0,223.96,4.6121]
[1734481756923,2.2319,223.99,223.96,4.6121]
[1734481757120,10.53669182,224.03,223.94,2.38]
[1734481757819,5.33470937,224.08,223.94,2.38]
[1734481758015,2.2317,224.01,223.94,2.38]
[1734481758219,10.29406293,224.02,223.94,2.38]
[1734481760219,13.6266202,224.01,223.94,2.38]
[1734481760422,2.2322,223.96,223.94,2.38]
[1734481761723,10.3199161,224.0,223.94,2.38]
[1734481761921,10.53669182,224.06,223.94,2.38]
[1734481762223,23.96182412,224.05,223.97,2.232]
[1734481762420,23.96182412,224.04,223.97,2.232]
[1734481762620,23.96182412,224.03,223.97,2.232]
[1734481762825,2.2317,224.01,223.98,2.2319]
[1734481763825,2.2316,224.02,223.99,2.2319]
[1734481764125,10.33235471,224.04,223.99,2.38]
[1734481764426,2.2313,224.05,223.99,2.38]
[1734481765027,42.43042346,224.11,223.99,12.91669182]
[1734481765028,10.33150038,224.07,223.99,12.91669182]
[1734481765223,10.33150038,224.1,223.99,12.91669182]
[1734481765418,2.2309,224.09,223.99,12.91669182]
[1734481765617,10.33141805,224.1,224.02,10.53669182]
[1734481765925,2.231,224.09,224.05,2.2313]
[1734481766125,2.231,224.09,224.05,4.6113]
[1734481766422,10.33141805,224.1,224.05,4.6113]
[1734481766423,10.33141805,224.1,224.05,2.38]
[1734481767530,2.2309,224.09,224.05,4.6112]
[1734481767928,1.4607,224.17,224.08,2.2309]
[1734481768123,282.93096991,224.26,224.05,12.91669182]
[1734481768124,13.59929182,224.18,224.05,12.91669182]
[1734481768329,13.62496083,224.17,224.05,12.91669182]
[1734481768623,23.94436569,224.17,224.09,2.2309]
[1734481768821,23.94436569,224.16,224.09,2.2309]
[1734481769018,23.94436569,224.15,224.09,2.2309]
[1734481769220,23.94436569,224.14,224.09,2.2309]
[1734481769419,12.11029182,224.18,224.09,2.2309]
[1734481769420,2.2302,224.16,224.09,2.2309]
[1734481769618,23.92402694,224.17,224.1,2.38]
[1734481769826,23.92402694,224.16,224.1,2.38]
[1734481770028,2.2304,224.14,224.1,4.6107]
[1734481771927,10.30603804,224.17,224.1,2.38]
[1734481773827,2.2307,224.11,224.1,2.38]
[1734481774020,2.2307,224.11,224.08,2.38]
[1734481775224,23.88389609,224.16,224.08,2.38]
[1734481775225,13.59027608,224.16,224.08,2.38]
[1734481775529,0.89206066,224.2,224.08,2.38]
[1734481775829,0.89206066,224.2,224.11,2.2306]
[1734481776028,24.76454797,224.2,224.11,2.2306]
[1734481776332,10.28895643,224.19,224.11,2.2306]
[1734481776524,2.2303,224.16,224.11,2.2306]
[1734481776931,24.76179897,224.2,224.1,2.2308]
[1734481777120,10.28776376,224.19,224.08,12.91669182]
[1734481777431,0.89206066,224.2,224.08,12.91669182]
[1734481777933,11.17900405,224.2,224.19,2.2299]
[1734481778133,11.17900405,224.2,224.14,10.53669182]
[1734481778134,0.89206066,224.2,224.17,2.38]
[1734481778326,0.89206066,224.2,224.18,2.38]
[1734481779126,0.89206066,224.2,224.14,2.2304]
[1734481779322,0.89206066,224.2,224.08,13.63639182]
[1734481779526,0.89206066,224.2,224.09,2.38]
[1734481779728,0.89206066,224.2,224.1,2.2308]
[1734481780532,0.89206066,224.2,224.11,2.2307]
[1734481780926,0.89206066,224.2,224.11,7.52647823]
[1734481781521,10.53669182,224.19,224.08,3.0997]
[1734481781729,10.53669182,224.16,224.02,10.53669182]
[1734481781931,10.53669182,224.16,224.03,2.38]
[1734481782732,10.53669182,224.16,224.04,2.2313]
[1734481782928,10.53669182,224.16,224.02,10.53669182]
[1734481783231,10.53669182,224.13,224.03,2.38]
[1734481783623,10.53669182,224.16,224.03,2.38]
[1734481783831,23.84226052,224.15,224.03,2.38]
[1734481784034,10.27545045,224.14,224.04,2.2314]
[1734481784234,10.53669182,224.16,224.04,2.2314]
[1734481784436,10.27596375,224.15,224.04,2.2314]
[1734481785535,10.27596375,224.15,224.05,4.6112]
[1734481786232,2.2311,224.07,224.03,2.2314]
[1734481786431,10.27596375,224.15,223.98,10.53669182]
[1734481786635,13.570946,224.14,223.98,10.53669182]
[1734481786833,10.53669182,224.1,223.99,2.38]
[1734481787434,2.2311,224.07,223.99,2.38]
[1734481787633,10.53669182,224.1,223.99,7.66053002]
[1734481788035,2.2315,224.03,223.99,7.66053002]
[1734481788936,2.2315,224.03,224.0,2.38]
[1734481789739,10.29028801,224.09,223.98,10.53669182]
[1734481789940,10.29028801,224.09,223.76,147.91703302]
[1734481789941,2.2318,224.0,223.97,2.38]
[1734481790240,2.2318,224.0,223.94,10.53669182]
[1734481790241,12.91669182,224.07,223.96,2.38]
[1734481790434,10.2967937,224.06,223.96,2.38]
[1734481791047,2.2315,224.03,223.96,2.38]
[1734481791334,6.65227578,224.05,223.96,2.38]
[1734481791540,10.2967937,224.06,223.96,2.38]
[1734481791738,2.232,223.98,223.96,2.38]
[1734481792639,12.91669182,224.07,223.96,2.38]
[1734481792640,2.2318,224.0,223.96,2.38]
[1734481793542,2.2319,223.99,223.96,2.38]
[1734481795435,10.53669182,224.04,223.91,3.0978]
[1734481795637,10.53669182,224.01,223.91,2.38]
[1734481795841,10.2970093,224.0,223.86,6.93636603]
[1734481796044,2.2328,223.9,223.87,2.38]
[1734481796233,10.53669182,223.98,223.87,2.38]
[1734481796639,2.2325,223.93,223.89,2.2328]
[1734481796835,10.53669182,223.98,223.89,2.2328]
[1734481797735,2.2325,223.93,223.88,2.2329]
[1734481798136,2.2326,223.92,223.88,2.2329]
[1734481800337,2.2328,223.9,223.87,2.38]
[1734481800541,10.53669182,223.95,223.83,2.9988]
[1734481800848,2.38,223.96,223.76,1.4806]
[1734481800849,10.53669182,223.88,223.76,1.4806]
[1734481801037,2.38,223.87,223.76,1.4806]
[1734481801445,12.67084193,223.87,223.74,2.38]
[1734481802048,12.67084193,223.87,223.76,2.2341]
[1734481802341,12.67084193,223.87,223.74,2.38]
[1734481802342,10.53669182,223.85,223.74,2.38]
[1734481802746,2.234,223.78,223.73,12.77119182]
[1734481803246,2.2336,223.82,223.73,10.53669182]
[1734481803445,10.53669182,223.85,223.73,10.53669182]
[1734481803750,2.2338,223.8,223.74,2.2343]
[1734481803944,1.4634,223.86,223.73,10.53669182]
[1734481804141,10.53669182,223.84,223.72,5.32982274]
[1734481804647,2.2337,223.81,223.72,5.32982274]
[1734481804848,10.53669182,223.84,223.72,5.32982274]
[1734481805950,2.2342,223.76,223.71,4.6146]
[1734481806856,10.53669182,223.81,223.69,8.24562157]
[1734481807354,10.53669182,223.81,223.69,10.48052157]
[1734481807355,2.2344,223.74,223.69,10.48052157]
[1734481807956,2.2344,223.74,223.69,5.1978]
[1734481808157,10.53669182,223.81,223.7,2.2347]
[1734481808158,2.2342,223.76,223.7,2.2347]
[1734481808355,10.53669182,223.81,223.7,2.2347]
[1734481808555,10.53669182,223.81,223.69,2.9629]
[1734481808956,2.2344,223.74,223.69,5.1977]
[1734481809654,10.53669182,223.81,223.69,2.9629]
[1734481809655,2.2345,223.73,223.69,2.9629]
[1734481809859,10.53669182,223.81,223.69,2.9629]
[1734481810451,2.38,223.82,223.65,2.2352]
[1734481810452,2.2347,223.71,223.65,2.2352]
[1734481810652,2.38,223.77,223.65,4.6152]
[1734481810952,10.53669182,223.75,223.63,2.38]
[1734481811460,10.53669182,223.75,223.61,2.38]
[1734481811858,10.53669182,223.75,223.63,10.53669182]
[1734481812052,2.38,223.77,223.66,10.53669182]
[1734481812254,2.38,223.77,223.67,2.38]
[1734481812458,2.38,223.77,223.71,2.2346]
[1734481812660,2.38,223.77,223.67,2.38]
[1734481813057,2.2343,223.75,223.69,2.2348]
[1734481813453,2.38,223.77,223.69,2.2348]
[1734481813958,10.53669182,223.75,223.38,23.88937736]
[1734481814158,10.53669182,223.64,223.4,1.4933]
[1734481814354,10.53669182,223.64,223.51,5.40018108]
[1734481814559,2.2359,223.59,223.52,2.2365]
[1734481814857,10.53669182,223.64,223.52,2.2365]
[1734481815067,2.2359,223.59,223.53,2.2364]
[1734481815468,10.53669182,223.64,223.51,7.78018108]
[1734481815959,2.2357,223.61,223.51,10.01678108]
[1734481816163,10.53669182,223.64,223.51,2.38]
[1734481816363,10.53669182,223.61,223.51,2.38]
[1734481817457,2.236,223.58,223.53,2.2364]
[1734481818258,2.38,223.63,223.53,2.2364]
[1734481818458,2.2359,223.59,223.53,2.2364]
[1734481819159,2.38,223.63,223.51,2.38]
[1734481819362,10.53669182,223.61,223.51,2.38]
[1734481819558,10.53669182,223.58,223.43,10.53669182]
[1734481819760,12.91669182,223.58,223.44,2.38]
[1734481820065,12.91669182,223.58,223.44,1.5424]
[1734481820259,12.91669182,223.58,223.45,7.67322653]
[1734481820464,10.53669182,223.55,223.45,10.05322653]
[1734481820659,10.53669182,223.55,223.45,7.81602653]
[1734481820864,10.53669182,223.55,223.46,2.2371]
[1734481821460,2.2365,223.53,223.46,2.2371]
[1734481821657,10.53669182,223.55,223.46,2.2371]
[1734481823269,2.2367,223.51,223.46,2.2371]
[1734481823464,10.53669182,223.55,223.44,1.5424]
[1734481823664,10.53669182,223.58,223.48,2.2369]
[1734481823866,2.38,223.57,223.48,2.2369]
[1734481824367,2.38,223.57,223.47,2.237]
[1734481824670,10.53669182,223.58,223.44,1.5424]
[1734481824965,10.53669182,223.58,223.51,2.2366]
[1734481824966,2.2363,223.55,223.51,2.2366]
[1734481825269,10.53669182,223.58,223.51,2.2366]
[1734481826161,12.77269182,223.58,223.51,2.2366]
[1734481826564,12.77269182,223.58,223.52,2.2365]
[1734481826967,2.2361,223.57,223.52,2.2365]
[1734481828370,2.2362,223.56,223.51,2.2366]
[1734481828562,10.53669182,223.58,223.48,2.38]
[1734481828967,2.2364,223.54,223.49,2.2368]
[1734481829468,10.53669182,223.55,223.47,2.237]
[1734481829868,12.91669182,223.55,223.47,2.237]
[1734481830076,2.2367,223.51,223.47,2.237]
[1734481830768,10.53669182,223.52,223.44,3.9224]
[1734481831572,10.53669182,223.52,223.44,1.5424]
[1734481832467,2.2367,223.51,223.47,2.237]
[1734481832674,2.2367,223.51,223.44,1.5424]
[1734481832864,10.53669182,223.52,223.44,1.5424]
[1734481833875,10.53669182,223.52,223.48,2.2369]
[1734481834374,12.77329182,223.52,223.48,2.2369]
[1734481835370,2.2367,223.51,223.48,2.2369]
[1734481835770,10.53669182,223.52,223.44,1.5424]
[1734481835976,2.2369,223.49,223.42,9.40118267]
[1734481836366,2.2368,223.5,223.46,2.2371]
[1734481837275,2.2368,223.5,223.42,9.40118267]
[1734481838277,2.2368,223.5,223.46,2.2371]
[1734481840773,10.53669182,223.52,223.46,2.2371]
[1734481840972,2.2369,223.49,223.46,2.2371]
[1734481841170,10.53669182,223.49,223.4,2.2377]
[1734481841371,10.53669182,223.52,223.4,2.2377]
[1734481841372,10.53669182,223.45,223.4,2.2377]
[1734481841775,2.2374,223.44,223.4,2.2377]
[1734481842276,2.2377,223.41,223.38,2.58622]
[1734481843271,2.2375,223.43,223.38,0.34832]
[1734481843475,10.53669182,223.45,223.38,0.34832]
[1734481843678,12.91669182,223.45,223.38,0.34832]
[1734481843876,10.53669182,223.42,223.38,0.34832]
[1734481844778,10.53669182,223.42,223.38,2.58622]
[1734481844974,2.2375,223.43,223.38,0.34832]
[1734481845182,12.91669182,223.45,223.38,0.34832]
[1734481845386,2.2376,223.42,223.38,2.58632]
[1734481846080,2.2376,223.42,223.38,0.34832]
[1734481846288,12.91669182,223.45,223.38,0.34832]
[1734481846786,12.91669182,223.45,223.38,2.58622]
[1734481847684,2.2377,223.41,223.38,0.34832]
[1734481848079,12.91669182,223.45,223.38,0.34832]
[1734481848285,2.2378,223.4,223.38,0.34832]
[1734481848586,12.91669182,223.45,223.38,0.34832]
[1734481849583,2.2379,223.39,223.38,0.34832]
[1734481849979,12.77459182,223.39,223.38,0.34832]
[1734481850285,2.2385,223.33,223.3,2.38]
[1734481850487,2.2385,223.33,223.3,4.6187]
[1734481851282,2.2385,223.33,223.29,2.2388]
[1734481851585,2.2385,223.33,223.2,15.07599182]
[1734481851779,2.2385,223.33,223.26,2.38]
[1734481852276,2.2385,223.33,223.2,15.07599182]
[1734481852277,10.53669182,223.33,223.2,15.07599182]
[1734481852480,2.2389,223.29,223.21,2.38]
[1734481852684,10.53669182,223.33,223.21,2.38]
[1734481852882,10.53669182,223.33,223.2,15.07599182]
[1734481853078,2.38,223.35,223.08,23.88937736]
[1734481853281,10.53669182,223.24,223.16,2.2401]
[1734481853483,12.77609182,223.24,223.15,2.38]
[1734481853782,10.53669182,223.24,223.15,2.38]
[1734481853984,10.53669182,223.27,223.16,5.50912644]
[1734481854280,2.38,223.29,223.16,5.50912644]
[1734481854281,10.53669182,223.24,223.16,5.50912644]
[1734481854689,2.2397,223.21,223.15,2.38]
[1734481855285,10.53669182,223.24,223.15,4.6202]
[1734481855286,2.2396,223.22,223.15,4.6202]
[1734481855483,10.53669182,223.24,223.15,4.6202]
[1734481855786,10.53669182,223.24,223.15,2.38]
[1734481855981,2.24,223.18,223.15,2.38]
[1734481856283,10.53669182,223.24,223.15,5.24861389]
[1734481856586,2.2398,223.2,223.15,7.48891389]
[1734481856782,10.53669182,223.21,223.13,2.38]
[1734481857082,2.2399,223.19,223.13,4.6204]
[1734481857282,10.53669182,223.21,223.1,3.8955]
[1734481857586,10.53669182,223.18,223.1,3.8955]
[1734481858082,10.53669182,223.18,223.08,1.4391]
[1734481858083,2.2403,223.15,223.08,1.4391]
[1734481858381,2.2403,223.15,223.08,3.8191]
[1734481858587,2.2401,223.17,223.11,2.2407]
[1734481859286,10.53669182,223.21,223.08,9.17449897]
[1734481859785,2.2399,223.19,223.11,2.2406]
[1734481860090,10.53669182,223.21,223.08,6.79449897]
[1734481860288,2.2401,223.17,223.12,2.2406]
[1734481861283,10.53669182,223.18,223.09,2.38]
[1734481861284,10.53669182,223.18,223.09,2.2408]
[1734481861484,10.53669182,223.15,223.09,2.2408]
[1734481862189,10.53669182,223.15,223.05,2.38]
[1734481862585,10.53669182,223.15,223.07,5.36287339]
[1734481862884,10.53669182,223.12,223.01,1.4447]
[1734481863682,2.2408,223.11,223.05,2.2412]
[1734481863882,10.53669182,223.12,223.05,2.2412]
[1734481864285,10.53669182,223.12,223.07,2.241]
[1734481864489,10.53669182,223.12,223.03,5.31988857]
[1734481865382,10.53669182,223.15,223.03,5.31988857]
[1734481865584,2.2404,223.14,223.03,5.31988857]
[1734481865984,2.2404,223.14,223.09,2.2408]
[1734481866386,10.53669182,223.15,223.06,2.38]
[1734481866586,10.53669182,223.15,223.11,2.2406]
[1734481866787,10.53669182,223.18,223.06,12.91669182]
[1734481866988,10.53669182,223.18,223.07,2.38]
[1734481867184,10.53669182,223.18,223.15,2.2402]
[1734481867988,2.2398,223.2,223.15,2.2402]
[1734481868289,2.2398,223.2,223.12,2.38]
[1734481868290,2.24,223.18,223.14,2.2403]
[1734481869184,9.79157718,223.23,223.03,2.38]
[1734481869185,10.53669182,223.15,223.03,2.38]
[1734481869590,12.77699182,223.15,223.06,2.2411]
[1734481869888,12.77699182,223.15,223.03,2.38]
[1734481869889,10.53669182,223.15,223.03,2.38]
[1734481870189,10.53669182,223.12,223.02,5.29292356]
[1734481870589,2.38,223.14,223.01,2.2416]
[1734481870590,2.2412,223.06,223.01,2.2416]
[1734481870792,10.53669182,223.09,222.98,2.38]
[1734481871993,2.241,223.08,223.03,2.2414]
[1734481872188,10.53669182,223.09,223.0,5.45859053]
[1734481873389,10.53669182,223.09,222.93,4.6948]
[1734481873390,10.53669182,223.06,222.97,2.38]
[1734481874294,10.53669182,223.06,223.0,2.2418]
[1734481875292,2.2415,223.04,222.98,2.2419]
[1734481875693,2.242,222.98,222.96,5.45379708]
[1734481875891,2.38,223.09,222.93,4.6948]
[1734481875892,10.53669182,223.03,222.93,4.6948]
[1734481876093,10.53669182,223.06,222.93,4.6948]
[1734481876494,10.53669182,223.03,222.93,2.38]
[1734481876694,10.53669182,223.03,222.94,5.39135724]
[1734481877599,10.53669182,223.08,222.94,5.39135724]
[1734481878093,10.53669182,223.08,223.01,2.2416]
[1734481878293,10.53669182,223.08,222.94,5.39135724]
[1734481878294,10.53669182,223.05,222.94,5.39135724]
[1734481878595,12.77799182,223.05,223.01,2.2417]
[1734481879896,10.53669182,223.05,222.94,5.39135724]
[1734481880593,10.53669182,223.02,222.97,2.242]
[1734481880795,10.53669182,223.02,222.9,2.38]
[1734481881393,2.2419,222.99,222.95,2.2423]
[1734481881789,10.53669182,223.02,222.9,2.38]
[1734481882194,2.38,223.04,222.91,5.27640323]
[1734481882392,2.38,223.04,222.92,2.38]
[1734481882593,10.53669182,223.02,222.92,2.38]
[1734481884000,2.2419,223.0,222.95,2.2422]
[1734481884201,3.1448,223.04,222.92,2.38]
[1734481884396,10.53669182,223.08,222.92,12.91669182]
[1734481884595,2.2412,223.06,222.96,2.2421]
[1734481884896,10.53669182,223.11,222.97,2.38]
[1734481885091,10.53669182,223.11,222.98,13.53829182]
[1734481885295,10.53669182,223.11,223.08,2.2409]
[1734481885898,10.53669182,223.11,223.03,2.38]
[1734481886099,10.53669182,223.11,223.01,2.38]
[1734481886495,1.4296,223.18,223.04,10.53669182]
[1734481886696,11.96629182,223.18,223.04,10.53669182]
[1734481887202,12.77699182,223.15,223.01,12.91669182]
[1734481887802,12.77699182,223.15,223.09,2.2408]
[1734481888101,12.77699182,223.15,222.98,4.509]
[1734481888102,12.77729182,223.12,223.06,2.38]
[1734481888293,10.53669182,223.12,222.98,15.04569182]
[1734481888498,10.53669182,223.12,222.99,2.38]
[1734481888700,2.2409,223.1,222.99,2.38]
[1734481889101,2.38,223.16,222.99,2.38]
[1734481889294,12.77699182,223.15,223.01,10.53669182]
[1734481889495,12.77699182,223.15,222.99,2.38]
[1734481889695,12.77699182,223.15,223.01,10.53669182]
[1734481890000,12.77699182,223.15,223.05,2.2412]
[1734481890303,1.4296,223.18,223.06,2.38]
[1734481890496,10.53669182,223.16,223.07,2.38]
[1734481890900,2.38,223.24,223.07,2.38]
[1734481891102,10.53669182,223.22,223.07,12.91669182]
[1734481891300,10.53669182,223.22,223.08,4.6615]
[1734481891703,2.2397,223.21,223.16,2.2401]
[1734481892106,10.53669182,223.22,223.14,2.38]
[1734481893207,2.2397,223.21,223.15,2.2402]
[1734481893505,10.53669182,223.19,223.12,2.38]
[1734481893708,2.2404,223.15,223.09,4.6208]
[1734481894004,10.53669182,223.16,223.09,2.38]
[1734481894306,2.2402,223.16,223.09,4.6208]
[1734481894605,10.53669182,223.19,223.09,2.38]
[1734481894902,2.2397,223.21,223.09,2.38]
[1734481895503,2.2397,223.21,223.15,2.2402]
[1734481895702,2.24,223.18,223.06,10.53669182]
[1734481895905,10.53669182,223.22,223.07,2.38]
[1734481896108,10.53669182,223.22,223.08,2.38]
[1734481896307,2.2397,223.21,223.08,2.38]
[1734481896505,2.2397,223.21,223.15,2.2402]
[1734481896702,10.53669182,223.22,223.14,2.38]
[1734481897407,2.2396,223.22,223.14,2.38]
[1734481897607,10.53669182,223.25,223.14,2.38]
[1734481898006,10.53669182,223.28,223.15,10.53669182]
[1734481898206,10.53669182,223.28,223.23,2.2394]
[1734481898609,10.53669182,223.28,223.2,2.38]
[1734481898911,10.53669182,223.28,223.22,2.2396]
[1734481898912,2.2391,223.27,223.22,2.2396]
[1734481899312,2.2391,223.27,223.23,2.2395]
[1734481899507,2.2391,223.27,223.2,2.38]
[1734481900205,2.2391,223.27,223.22,2.2395]
[1734481900406,10.53669182,223.28,223.2,2.38]
[1734481900606,5.2641433,223.29,223.12,5.38676535]
[1734481900607,10.53669182,223.22,223.12,7.76676535]
[1734481900916,10.53669182,223.22,223.12,5.38676535]
[1734481901108,10.53669182,223.22,223.12,7.76676535]
[1734481901305,10.53669182,223.22,223.05,1.5092]
[1734481901508,10.53669182,223.22,223.1,2.38]
[1734481901509,10.53669182,223.19,223.1,2.38]
[1734481901914,10.53669182,223.19,223.11,2.2407]
[1734481902613,2.2402,223.16,223.11,2.2407]
[1734481904814,2.2403,223.15,223.11,2.2407]
[1734481905415,2.2403,223.15,223.1,2.38]
[1734481905809,2.2405,223.13,223.09,2.38]
[1734481906317,2.38,223.21,223.09,2.38]
[1734481906512,2.38,223.21,223.01,19.85297941]
[1734481906513,2.2407,223.11,223.07,2.2411]
[1734481906714,16.97657941,223.18,223.06,2.38]
[1734481906914,1.5408,223.17,223.05,2.38]
[1734481907919,2.2406,223.12,223.07,2.241]
[1734481908413,1.5408,223.17,223.03,2.38]
[1734481908414,2.2409,223.09,223.03,2.38]
[1734481909412,2.2409,223.09,223.05,2.2412]
[1734481909822,2.38,223.14,223.01,16.97657941]
[1734481910021,2.241,223.08,223.03,2.2414]
[1734481910316,2.241,223.08,223.0,7.84690657]
[1734481910711,2.38,223.14,222.97,18.50187941]
[1734481910912,2.38,223.14,222.81,43.77889081]
[1734481911116,16.97657941,223.04,222.83,21.55527941]
[1734481911313,23.93561089,223.03,222.9,2.2427]
[1734481911513,17.05671089,223.02,222.88,2.38]
[1734481911714,17.05671089,223.02,222.88,7.77044445]
[1734481911715,13.69593634,223.01,222.88,7.77044445]
[1734481911917,2.2422,222.96,222.91,2.2426]
[1734481912123,13.69593634,222.99,222.91,2.2426]
[1734481912321,2.2423,222.95,222.89,2.2428]
[1734481912723,13.61729694,222.97,222.89,2.2428]
[1734481912924,2.2423,222.95,222.88,2.38]
[1734481913125,4.4989,223.03,222.88,2.38]
[1734481913323,2.38,223.02,222.96,0.31259]
[1734481913516,2.2421,222.97,222.96,0.31259]
[1734481914325,23.9163548,222.98,222.96,0.31259]
[1734481914516,10.29870446,222.97,222.96,0.31259]
[1734481914719,2.242,222.99,222.96,0.31259]
[1734481915218,23.92561158,223.02,222.96,0.31259]
[1734481915422,23.92561158,223.01,222.96,0.31259]
[1734481915625,10.302829,223.0,222.96,0.31259]
[1734481915923,2.2421,222.97,222.96,0.31259]
[1734481916225,1.5046,223.03,222.96,0.31259]
[1734481916428,2.38,223.04,222.96,0.31259]
[1734481916817,2.2416,223.03,222.98,2.2419]
[1734481917127,41.44949305,223.1,222.96,0.31259]
[1734481917329,26.32157763,223.07,222.96,0.31259]
[1734481917519,23.94157763,223.06,222.96,0.31259]
[1734481917724,10.30999376,223.05,222.96,0.31259]
[1734481917926,2.38,223.07,222.96,0.31259]
[1734481918128,2.2418,223.01,222.96,2.55469]
[1734481918331,2.38,223.02,222.96,0.31259]
[1734481918631,2.38,223.03,222.96,0.31259]
[1734481918825,2.2421,222.97,222.96,0.31259]
[1734481921027,41.44949305,223.1,222.96,0.31259]
[1734481921028,2.2418,223.0,222.96,0.31259]
[1734481921329,2.2419,222.99,222.96,0.31259]
[1734481921527,23.95232784,223.03,222.96,0.31259]
[1734481921832,2.2413,223.05,222.96,0.31259]
[1734481922027,2.38,223.07,222.96,0.31259]
[1734481922226,10.31957843,223.07,222.96,0.31259]
[1734481922430,41.44949305,223.1,222.96,0.31259]
[1734481922431,39.89339305,223.1,222.96,0.31259]
[1734481923130,39.89339305,223.1,223.07,2.241]
[1734481923328,39.89339305,223.1,223.03,2.38]
[1734481923534,2.2405,223.14,223.03,2.38]
[1734481923828,2.2405,223.14,223.08,2.2409]
[1734481924034,2.38,223.15,223.03,2.38]
[1734481924339,4.5209,223.17,223.03,2.38]
[1734481924639,2.2403,223.15,223.1,2.2408]
[1734481924938,4.5209,223.17,223.1,2.2408]
[1734481924939,14.82039533,223.17,223.1,2.2408]
[1734481925134,1.5156,223.17,223.1,2.2408]
[1734481925335,2.2402,223.16,223.04,3.0148]
[1734481925535,19.35657941,223.19,223.04,3.0148]
[1734481925738,2.38,223.22,223.05,1.5138]
[1734481925933,16.97657941,223.23,223.14,2.2403]
[1734481925934,2.2398,223.2,223.14,2.2403]
[1734481926137,2.2398,223.2,223.05,1.5138]
[1734481926138,5.31624379,223.21,223.12,2.38]
[1734481926338,5.31624379,223.21,223.11,2.38]
[1734481926535,16.97657941,223.19,223.06,2.38]